bitfinex/quotes_ETHUSD_20250824
["timestamp","ask_amount","ask_price","bid_price","bid_amount"]
[1756067021739,0.04,4814.4,4812.3,4.861]
[1756067022073,0.04,4814.4,4811.9,2.34221435]
[1756067022074,0.04,4814.4,4812.5,3.0]
[1756067022276,0.04,4814.4,4814.3,2.07714517]
[1756067022477,0.04,4814.4,4814.3,6.93714517]
[1756067022677,0.04,4814.4,4814.3,2.07714517]
[1756067022881,0.04,4814.4,4814.3,2.54164517]
[1756067023042,0.04,4814.4,4814.3,7.40064517]
[1756067023249,0.04,4815.4,4815.3,2.0767138]
[1756067023576,0.04,4815.4,4815.3,8.5327138]
[1756067023775,0.04,4815.4,4815.3,8.9972138]
[1756067023979,0.04,4815.4,4815.3,8.5317138]
[1756067024189,0.04,4815.4,4815.3,3.6747138]
[1756067024544,0.04,4815.4,4815.3,8.5307138]
[1756067024777,0.04,4815.4,4815.3,8.5297138]
[1756067025080,0.04,4815.4,4815.3,8.9942138]
[1756067025284,0.04,4815.4,4815.3,13.10131386]
[1756067025585,0.04,4815.4,4815.3,1.598]
[1756067025744,0.04,4815.4,4815.3,8.5287138]
[1756067025944,0.04,4815.4,4815.3,1.598]
[1756067026365,0.04,4815.4,4815.3,6.45]
[1756067026683,0.04,4817.4,4815.3,6.45]
[1756067026684,0.04,4817.4,4815.8,2.0764885]
[1756067027024,0.04,4817.4,4816.1,2.07635602]
[1756067027189,0.04,4817.4,4816.3,2.07628262]
[1756067027484,0.04,4817.4,4817.1,2.075925]
[1756067027645,0.04,4817.4,4817.3,2.07585161]
[1756067028144,1e-08,4819.4,4818.8,2.07520458]
[1756067028345,1e-08,4819.4,4819.1,2.07507625]
[1756067028542,1e-08,4819.4,4819.2,6.92301326]
[1756067028776,1e-08,4819.4,4818.9,1.598]
[1756067028943,1e-08,4819.4,4819.0,4.848]
[1756067029144,1e-08,4819.4,4819.2,2.07503222]
[1756067029346,1e-08,4819.4,4819.2,4.847]
[1756067029586,1e-08,4819.4,4818.9,1.598]
[1756067029752,1e-08,4819.4,4817.0,0.15337591]
[1756067029753,0.4747,4819.3,4817.8,3.67259791]
[1756067030092,0.4747,4819.3,4817.9,4.846]
[1756067030300,0.4747,4819.3,4817.0,2.07596494]
[1756067030301,0.4747,4819.3,4816.6,0.4645]
[1756067030590,0.4747,4819.3,4816.7,4.844]
[1756067030801,30.20717,4819.2,4816.8,4.843]
[1756067030952,30.4747,4819.1,4816.6,1.597]
[1756067031152,0.104,4817.5,4816.9,0.104]
[1756067031389,0.104,4816.9,4816.4,4.843]
[1756067031574,0.104,4817.1,4816.5,4.842]
[1756067031753,0.104,4817.3,4816.6,0.104]
[1756067032109,0.4747,4817.6,4816.1,0.04]
[1756067032286,0.104,4817.2,4816.5,0.104]
[1756067032473,0.4747,4817.6,4816.5,4.84]
[1756067032677,0.4747,4817.6,4816.1,0.04]
[1756067033390,0.25502965,4817.5,4816.1,0.04]
[1756067033597,0.4747,4817.4,4816.1,0.04]
[1756067034212,0.63138293,4817.4,4815.1,0.04]
[1756067034360,0.63138293,4817.4,4814.1,0.04]
[1756067034361,16.14334178,4817.0,4814.1,0.04]
[1756067034557,33.15182106,4816.9,4814.1,0.04]
[1756067034864,31.73304649,4816.8,4814.1,0.04]
[1756067035203,33.0,4816.7,4814.1,0.04]
[1756067035399,33.4747,4816.7,4814.4,2.0770915]
[1756067035689,0.32495624,4817.0,4814.1,0.04]
[1756067035895,0.4747,4817.3,4814.6,3.0]
[1756067036092,0.4747,4817.3,4814.7,1.597]
[1756067036259,0.4747,4817.3,4814.8,4.835]
[1756067036465,0.4747,4817.4,4814.9,0.4645]
[1756067036700,0.04,4818.4,4818.2,2.07542915]
[1756067036865,0.04,4817.4,4817.2,1.597]
[1756067037195,0.04,4817.4,4817.2,2.07587894]
[1756067037359,0.04,4817.4,4816.0,3.0]
[1756067037360,30.4747,4817.3,4814.8,1.597]
[1756067037559,0.4747,4817.2,4814.9,0.4645]
[1756067037916,0.04,4817.4,4815.2,2.07675693]
[1756067038071,0.04,4817.4,4816.8,2.07603765]
[1756067038277,0.04,4817.4,4817.2,2.07587277]
[1756067038861,0.04,4817.4,4817.3,8.62598579]
[1756067039071,0.04,4817.4,4817.3,10.06346447]
[1756067039270,0.04,4817.4,4817.3,0.4645]
[1756067039474,0.04,4817.4,4817.3,8.2965]
[1756067040100,0.04,4818.4,4818.3,2.07542079]
[1756067042407,0.04,4818.4,4817.1,1.596]
[1756067042696,0.5147,4818.4,4817.9,2.07556724]
[1756067042892,0.104,4817.7,4817.5,2.07576235]
[1756067043206,0.104,4817.7,4817.4,2.07579617]
[1756067043378,0.104,4817.7,4817.5,1.05746909]
[1756067043720,1e-08,4819.4,4817.8,3.0]
[1756067043868,1e-08,4819.4,4818.5,2.07532075]
[1756067044198,1e-08,4819.4,4819.1,2.07506315]
[1756067044506,1e-08,4819.4,4819.3,5.07499014]
[1756067044987,1e-08,4819.4,4819.3,10.36549014]
[1756067045173,1e-08,4819.4,4819.3,5.53949014]
[1756067045374,1e-08,4819.4,4819.3,10.36449014]
[1756067045588,0.20622098,4820.8,4820.5,2.07446812]
[1756067045772,0.20622098,4820.8,4819.2,0.71502583]
[1756067045773,0.4747,4820.7,4819.4,4.824]
[1756067045977,0.4747,4820.7,4819.2,4.824]
[1756067046161,0.4747,4820.7,4819.1,1.596]
[1756067046367,0.4747,4820.7,4817.5,1.52196909]
[1756067046566,2.62081301,4820.7,4818.7,2.07522162]
[1756067046802,0.91570282,4820.6,4817.7,4.823]
[1756067046970,0.4747,4820.5,4818.7,2.07524714]
[1756067047169,0.4747,4820.5,4818.5,2.07530701]
[1756067047368,0.4747,4820.4,4818.3,1.596]
[1756067047628,0.4747,4820.4,4818.9,2.07515514]
[1756067047782,0.4747,4820.4,4818.3,4.821]
[1756067048104,0.4747,4820.6,4818.2,1.596]
[1756067048276,0.16720368,4820.5,4819.3,2.07498638]
[1756067048485,0.4747,4820.4,4818.6,2.07527621]
[1756067048665,0.55011301,4820.0,4818.1,0.04]
[1756067048871,2.07490856,4819.5,4818.1,0.04]
[1756067049207,0.55011301,4819.2,4818.1,0.04]
[1756067049376,0.67847271,4819.1,4818.1,0.04]
[1756067049701,0.55011301,4819.0,4818.1,0.04]
[1756067049889,1.02481301,4819.0,4818.1,0.04]
[1756067050096,0.55011301,4818.7,4818.1,0.04]
[1756067050265,0.55011301,4818.5,4818.1,0.04]
[1756067050605,0.5512907,4818.2,4818.1,0.04]
[1756067050788,0.73348401,4818.5,4818.1,0.04]
[1756067050789,0.99229352,4818.5,4818.1,0.04]
[1756067051002,0.4747,4819.5,4818.2,2.07546386]
[1756067051201,0.4747,4819.5,4818.1,0.04]
[1756067051404,0.5512907,4819.1,4818.1,0.04]
[1756067051602,0.44103351,4819.0,4818.1,0.04]
[1756067051803,0.4747,4819.0,4818.1,0.04]
[1756067052318,0.99232421,4819.6,4818.1,0.04]
[1756067052519,0.44103351,4819.9,4818.3,3.0]
[1756067052729,0.99232421,4820.6,4818.3,3.0]
[1756067053020,0.5512907,4821.5,4820.7,2.07438753]
[1756067053188,0.4387,4822.0,4820.7,2.07438753]
[1756067053189,0.88043823,4822.0,4820.7,2.07438753]
[1756067053390,0.4387,4822.0,4820.3,1.596]
[1756067053589,0.104,4820.7,4820.3,1.596]
[1756067054177,0.5427,4820.7,4820.3,1.596]
[1756067054676,0.104,4820.4,4819.6,4.815]
[1756067054881,0.104,4820.1,4819.4,2.07490429]
[1756067055113,0.104,4819.5,4819.3,1.596]
[1756067055300,0.104,4819.5,4818.7,1.596]
[1756067055504,0.104,4819.1,4818.5,0.104]
[1756067055814,0.104,4818.7,4817.7,2.07563857]
[1756067056001,0.4387,4819.2,4817.2,2.17986771]
[1756067056002,0.104,4818.2,4817.2,2.17986771]
[1756067056210,0.4387,4818.2,4816.7,1.596]
[1756067056383,0.88043823,4818.2,4816.5,1.596]
[1756067056585,1.09695952,4818.2,4817.0,2.07594506]
[1756067056881,1.09695952,4818.2,4816.1,0.04]
[1756067057078,0.88043823,4818.2,4816.4,2.07620895]
[1756067057280,0.88043823,4818.2,4816.6,2.07611495]
[1756067057519,1.61396992,4818.2,4816.1,1.636]
[1756067057716,0.88043823,4818.2,4816.1,0.04]
[1756067058016,0.88043823,4818.2,4816.5,2.07618005]
[1756067058180,0.88043823,4818.2,4816.6,2.07613874]
[1756067058385,30.88043823,4818.2,4816.1,0.04]
[1756067058592,3.0,4818.0,4816.1,0.04]
[1756067058821,0.7333483,4817.2,4816.1,0.04]
[1756067058986,30.44173823,4817.2,4816.1,0.04]
[1756067059192,0.88043823,4817.2,4816.1,0.04]
[1756067059393,30.88043823,4817.2,4816.3,0.001]
[1756067059827,0.88043823,4817.2,4816.3,0.001]
[1756067060024,1.46526911,4816.9,4815.1,0.04]
[1756067060241,1.09880201,4815.2,4815.1,0.04]
[1756067060404,31.53880518,4815.2,4815.1,0.04]
[1756067060607,2.07680006,4815.1,4814.3,0.004]
[1756067060944,2.625506,4814.5,4814.3,0.004]
[1756067061243,0.98951333,4814.4,4814.3,0.004]
[1756067061393,1.15841256,4814.4,4814.3,0.004]
[1756067061593,0.61077711,4814.4,4814.3,0.004]
[1756067061992,0.07517699,4815.0,4814.3,2.0362]
[1756067062215,0.4387,4817.2,4814.3,2.0362]
[1756067062415,0.73125773,4816.8,4814.3,1.6]
[1756067062621,0.73125773,4816.1,4814.3,1.6]
[1756067062794,30.4387,4816.7,4814.3,1.6]
[1756067062795,0.4387,4816.7,4814.3,1.6]
[1756067062997,30.27659577,4816.6,4814.3,1.6]
[1756067063196,30.4387,4816.5,4814.3,1.6]
[1756067063392,0.73125773,4816.2,4814.3,0.004]
[1756067063633,0.73125773,4815.9,4814.3,0.004]
[1756067063830,30.0,4815.8,4814.3,0.004]
[1756067064030,1.01684361,4815.7,4814.3,0.004]
[1756067064399,4.46526911,4817.0,4814.3,0.004]
[1756067064400,0.73125773,4816.4,4814.7,2.07694497]
[1756067064595,0.04,4817.4,4814.8,3.4362]
[1756067064894,0.04,4817.4,4814.3,0.004]
[1756067064895,0.04,4817.4,4814.9,0.4362]
[1756067065122,30.4387,4817.3,4815.0,2.07683015]
[1756067065324,0.4387,4817.3,4814.9,0.4362]
[1756067065528,31.597,4817.2,4814.3,0.004]
[1756067065734,0.73125773,4817.0,4814.3,0.004]
[1756067065936,0.73125773,4816.7,4814.3,0.004]
[1756067066121,0.73125773,4816.0,4814.3,0.004]
[1756067066319,30.18281443,4815.9,4814.3,0.004]
[1756067066523,0.104,4814.4,4814.3,0.004]
[1756067066927,2.51521596,4815.8,4814.3,0.004]
[1756067066928,0.4387,4815.8,4814.3,0.004]
[1756067067230,30.0,4815.7,4814.3,0.004]
[1756067067436,30.4387,4815.7,4814.3,0.004]
[1756067067726,1.597,4816.1,4814.3,0.004]
[1756067067727,30.4387,4815.6,4814.3,0.004]
[1756067067927,2.07675926,4815.2,4814.3,0.004]
[1756067068128,2.51530487,4815.6,4814.3,0.004]
[1756067068129,30.0,4815.1,4814.3,0.004]
[1756067068333,0.32502713,4815.1,4814.3,0.004]
[1756067068703,0.32502713,4815.1,4814.3,1.004]
[1756067068908,30.0,4815.0,4814.3,1.004]
[1756067069095,0.4387,4815.0,4814.3,1.004]
[1756067069801,0.4387,4816.2,4814.3,1.004]
[1756067069996,30.0,4816.1,4814.3,1.004]
[1756067070655,2.07653925,4815.8,4814.3,1.004]
[1756067070964,30.0,4815.7,4814.3,1.004]
[1756067071127,0.4387,4816.0,4814.3,1.004]
[1756067071455,1.597,4816.2,4814.3,2.601]
[1756067071748,0.4387,4816.5,4814.3,2.601]
[1756067072300,0.4387,4816.5,4815.1,2.07675978]
[1756067072703,1.597,4817.0,4814.8,0.4362]
[1756067073000,0.04,4817.4,4816.7,2.07608502]
[1756067073229,0.04,4818.4,4817.9,2.0755931]
[1756067073525,0.04,4821.4,4817.9,0.4362]
[1756067073724,0.04,4821.4,4818.0,1.597]
[1756067074024,0.04,4821.4,4821.2,2.07415831]
[1756067074241,0.04,4821.4,4818.1,0.45766183]
[1756067074242,30.0,4821.2,4818.1,0.45766183]
[1756067074421,30.0,4821.2,4818.8,3.0]
[1756067074733,30.0,4821.2,4818.3,0.4362]
[1756067074734,0.4387,4821.1,4818.6,1.597]
[1756067074933,30.0,4821.0,4818.2,2.07545863]
[1756067075165,2.0744052,4820.7,4817.5,1.597]
[1756067075336,36.8347,4820.6,4817.2,1.597]
[1756067075669,30.4387,4820.5,4817.6,2.07569122]
[1756067075878,30.0,4820.4,4817.4,2.07578585]
[1756067076026,2.07465406,4820.1,4818.1,0.04]
[1756067076354,30.0,4820.0,4818.1,0.04]
[1756067076727,0.4387,4820.0,4818.1,0.04]
[1756067077061,0.104,4818.2,4818.1,0.04]
[1756067077756,30.4387,4818.2,4818.1,0.04]
[1756067079369,4.795,4818.6,4818.1,0.04]
[1756067079575,1.597,4819.4,4818.1,0.04]
[1756067079725,0.68307,4819.3,4818.1,0.04]
[1756067080128,4.795,4819.7,4818.1,0.04]
[1756067081066,30.0,4819.6,4818.1,0.04]
[1756067081270,30.4387,4819.6,4818.1,0.04]
[1756067081473,38.66736976,4819.5,4818.1,0.04]
[1756067081635,2.07525686,4818.7,4818.1,0.04]
[1756067081832,0.20752569,4818.6,4818.1,0.04]
[1756067082150,1.597,4818.8,4818.1,0.04]
[1756067082555,5.2307,4819.4,4818.1,0.04]
[1756067082786,0.4697,4819.3,4818.1,0.04]
[1756067082930,0.4697,4819.3,4817.1,0.04]
[1756067082931,0.4697,4818.7,4817.1,0.04]
[1756067083273,2.07542079,4818.3,4817.1,0.04]
[1756067083477,2.0757952,4817.5,4817.1,0.04]
[1756067083773,30.0,4817.4,4817.1,0.04]
[1756067083984,2.07589471,4817.2,4817.1,0.04]
[1756067084143,35.51220386,4817.2,4817.1,0.04]
[1756067084344,30.90600915,4817.2,4817.1,0.04]
[1756067084672,35.98245941,4817.2,4817.1,0.04]
[1756067084826,32.98245941,4817.2,4817.1,0.04]
[1756067085027,32.54559471,4817.2,4817.1,0.04]
[1756067085233,35.54559471,4817.2,4817.1,0.04]
[1756067085550,35.98239905,4817.2,4817.1,0.04]
[1756067085933,32.54559471,4817.2,4817.1,0.04]
[1756067086133,32.87049391,4817.2,4817.1,0.04]
[1756067086859,36.30679024,4817.2,4817.1,0.04]
[1756067087165,36.30679024,4817.2,4813.1,0.04]
[1756067087166,2.07625192,4816.4,4813.1,0.04]
[1756067087335,2.07625192,4816.4,4813.5,0.4415]
[1756067087336,2.07632573,4816.2,4813.5,0.4415]
[1756067087663,32.61662206,4816.2,4813.5,0.4415]
[1756067087829,32.94161115,4816.2,4813.5,0.4415]
[1756067088028,41.19831115,4816.2,4813.5,0.4415]
[1756067088234,36.41131115,4816.2,4813.5,2.51898919]
[1756067088462,41.19831115,4816.2,4813.5,0.4415]
[1756067089031,41.35141633,4816.2,4813.1,0.04]
[1756067089274,2.07655264,4815.7,4813.1,0.04]
[1756067089452,2.07675693,4815.2,4813.1,0.04]
[1756067089812,1.252,4814.0,4812.1,0.04]
[1756067090080,1.252,4814.0,4811.0,0.05]
[1756067090081,3.0,4812.3,4811.0,0.05]
[1756067090229,2.07847876,4811.3,4811.0,0.05]
[1756067090430,2.07816156,4812.0,4811.0,0.05]
[1756067090662,6.86319282,4811.9,4811.0,0.05]
[1756067090865,30.84601928,4811.8,4811.0,0.05]
[1756067091065,1.597,4812.2,4811.0,0.05]
[1756067091279,4.785,4812.1,4811.0,0.05]
[1756067091432,1.597,4812.2,4811.0,0.05]
[1756067091433,4.785,4812.0,4811.0,0.05]
[1756067091639,30.0,4811.9,4811.0,0.05]
[1756067092049,30.4697,4811.9,4811.0,0.05]
[1756067092248,34.786,4811.8,4811.0,0.05]
[1756067092470,30.0,4811.7,4811.0,0.05]
[1756067092965,2.07832301,4811.6,4811.0,0.05]
[1756067093165,30.0,4811.5,4811.0,0.05]
[1756067093332,2.0667,4812.2,4811.0,0.05]
[1756067093333,1.597,4812.2,4811.0,0.05]
[1756067093533,35.31694231,4812.1,4811.0,0.05]
[1756067093771,30.0,4812.0,4811.0,0.05]
[1756067093968,5.07820004,4811.9,4811.0,0.05]
[1756067094165,2.07829694,4811.7,4811.0,0.05]
[1756067094365,31.08676938,4811.6,4811.0,0.05]
[1756067094592,34.784,4811.5,4811.0,0.05]
[1756067094754,1.08676938,4811.6,4811.0,0.05]
[1756067094952,4.784,4811.5,4811.0,0.05]
[1756067095262,1.598,4813.3,4811.3,2.07844033]
[1756067095465,30.0,4813.2,4811.2,0.4415]
[1756067095637,1.5012,4813.5,4811.4,0.4415]
[1756067095838,4.93412,4813.4,4811.4,0.4415]
[1756067096095,0.15012,4813.4,4811.7,2.07824655]
[1756067096260,0.15012,4813.4,4811.8,0.4415]
[1756067096463,4.783,4813.3,4811.8,0.4415]
[1756067096662,30.0,4813.2,4811.8,0.4415]
[1756067097370,4.783,4813.1,4811.8,0.4415]
[1756067097766,4.782,4813.0,4811.8,0.4415]
[1756067098174,4.782,4813.0,4811.8,2.40971004]
[1756067098391,4.782,4813.0,4811.8,0.3315]
[1756067098701,32.07774938,4812.9,4811.1,0.04]
[1756067098885,2.07784101,4812.7,4811.1,0.04]
[1756067099086,5.2602,4813.0,4811.1,0.04]
[1756067099087,30.0,4812.6,4811.1,0.04]
[1756067099287,2.07783614,4812.7,4811.1,0.04]
[1756067099595,0.104,4811.2,4811.1,0.04]
[1756067100276,4.78,4811.2,4811.1,0.04]
[1756067100466,5.258,4811.2,4811.1,0.04]
[1756067101087,1.598,4812.2,4811.1,0.04]
[1756067101307,30.0,4812.1,4811.1,0.04]
[1756067101509,4.779,4812.6,4811.6,2.0782747]
[1756067101670,4.779,4812.7,4811.3,2.07843177]
[1756067101869,1.598,4814.0,4812.4,2.07792846]
[1756067102068,4.778,4814.5,4813.3,2.07757278]
[1756067102325,4.778,4814.5,4812.5,0.4415]
[1756067102326,4.778,4814.5,4812.9,2.07774272]
[1756067102505,4.778,4814.5,4812.1,1.598]
[1756067102506,4.818,4814.4,4812.1,1.598]
[1756067102705,30.0,4814.3,4812.6,2.51936079]
[1756067102909,30.0,4814.3,4811.1,6.632]
[1756067103075,3.0,4814.1,4811.1,0.04]
[1756067103277,2.07759453,4813.3,4811.1,2.11849326]
[1756067103498,2.07770621,4813.0,4811.1,0.04]
[1756067103715,34.777,4812.9,4811.1,0.04]
[1756067103914,3.0,4812.7,4811.1,0.04]
[1756067104100,3.0,4812.5,4811.1,0.04]
[1756067104421,2.07813869,4812.0,4811.1,0.04]
[1756067104594,34.776,4811.9,4811.1,0.04]
[1756067104781,30.0,4811.8,4811.1,0.04]
[1756067104982,4.776,4811.9,4811.1,0.04]
[1756067105320,30.0,4811.8,4811.1,0.04]
[1756067106083,4.776,4811.9,4811.1,0.04]
[1756067106285,0.4697,4811.7,4811.1,0.04]
[1756067106508,2.0784053,4811.4,4811.1,0.04]
[1756067106728,34.774,4811.3,4811.1,0.04]
[1756067106883,1.598,4811.6,4811.1,0.04]
[1756067107084,0.4697,4811.2,4811.1,0.04]
[1756067107330,32.54818353,4811.2,4811.1,0.04]
[1756067107493,2.54818353,4811.2,4811.1,0.04]
[1756067107728,5.98318043,4811.2,4811.1,0.04]
[1756067107909,35.98318043,4811.2,4811.1,0.04]
[1756067108231,36.3085064,4811.2,4810.6,0.004]
[1756067108385,1.252,4810.7,4809.1,0.04]
[1756067108585,30.0,4809.1,4808.1,0.04]
[1756067108896,1.598,4809.0,4808.1,0.04]
[1756067109305,2.07978037,4808.2,4808.1,0.04]
[1756067109608,40.28593532,4808.2,4808.1,0.04]
[1756067109808,10.75563532,4808.2,4808.1,0.04]
[1756067110009,4.252,4808.1,4806.4,0.004]
[1756067110224,0.104,4806.5,4803.1,0.04]
[1756067110529,2.08172866,4803.7,4803.1,0.04]
[1756067110822,42.60122124,4803.7,4803.1,0.04]
[1756067111039,42.35458361,4803.7,4803.1,0.04]
[1756067111186,34.598,4803.7,4803.1,0.04]
[1756067111390,30.0,4803.6,4803.1,0.04]
[1756067111623,2.08189361,4803.4,4803.1,0.04]
[1756067111791,33.62122095,4803.3,4803.1,0.04]
[1756067112134,30.0,4803.3,4803.1,0.04]
[1756067112335,4.77,4803.3,4803.1,0.04]
[1756067112519,1.598,4803.7,4803.1,0.04]
[1756067112699,34.769,4803.6,4803.1,0.04]
[1756067112903,2.08187847,4803.4,4803.1,0.04]
[1756067113222,1.598,4803.7,4803.1,0.04]
[1756067113429,1.599,4804.5,4803.1,0.04]
[1756067113729,1.599,4804.5,4803.4,2.08182832]
[1756067113940,4.771,4804.7,4803.5,0.4655]
[1756067114232,30.0,4803.5,4803.1,0.04]
[1756067114388,4.771,4803.4,4803.1,0.04]
[1756067114740,4.77,4804.1,4803.1,0.04]
[1756067114941,34.77,4804.0,4803.1,0.04]
[1756067115089,34.77,4803.9,4803.1,0.04]
[1756067115424,32.31733938,4803.8,4803.1,0.04]
[1756067115625,34.77,4803.7,4803.1,0.04]
[1756067115830,2.08186752,4803.4,4803.1,0.04]
[1756067116126,3.0,4803.2,4801.1,0.04]
[1756067116289,2.08281263,4801.2,4801.1,0.04]
[1756067116493,41.45281263,4801.2,4801.1,0.04]
[1756067116693,42.08328219,4801.2,4801.1,0.04]
[1756067116991,42.08328219,4801.2,4797.8,0.004]
[1756067116992,36.53755683,4801.2,4797.8,0.004]
[1756067117193,2.08316705,4800.4,4800.2,0.04]
[1756067117515,33.20831671,4800.3,4800.2,0.04]
[1756067117719,1.6,4801.2,4800.2,0.04]
[1756067117956,1.6,4801.2,4800.2,0.5055]
[1756067118106,2.08179759,4803.6,4800.2,0.5055]
[1756067118107,1.6,4802.8,4800.2,0.5055]
[1756067118434,3.0,4802.6,4800.2,0.5055]
[1756067118672,3.0,4802.4,4800.2,0.04]
[1756067118852,30.0,4802.3,4800.3,0.4655]
[1756067119141,1.6,4802.8,4800.4,0.04]
[1756067119302,1.6,4802.8,4800.5,0.4655]
[1756067119630,4.767,4802.7,4800.6,0.04]
[1756067119941,1.77574464,4802.8,4800.7,0.4655]
[1756067120229,1.6,4802.8,4800.7,0.4655]
[1756067120434,0.04,4803.4,4801.4,2.08272587]
[1756067120435,0.104,4801.5,4801.4,2.08272587]
[1756067120602,0.04,4803.4,4801.4,2.08272587]
[1756067120603,0.04,4803.4,4801.4,0.4655]
[1756067120944,4.769,4803.3,4801.4,0.4655]
[1756067121092,0.104,4801.5,4801.4,0.4655]
[1756067121299,0.104,4801.5,4800.8,0.04]
[1756067121540,30.0,4801.4,4800.8,0.04]
[1756067121749,6.369,4801.3,4800.8,0.04]
[1756067121898,2.08291804,4801.0,4800.8,0.04]
[1756067122096,2.08258687,4801.8,4800.8,0.04]
[1756067122097,32.31553938,4800.9,4800.8,0.04]
[1756067122402,1.601,4800.9,4800.8,0.04]
[1756067122622,6.369,4800.9,4800.8,0.04]
[1756067122932,6.368,4800.9,4800.8,0.04]
[1756067123132,1.601,4800.9,4800.8,0.04]
[1756067123698,6.368,4800.9,4800.8,0.04]
[1756067124342,1.601,4800.9,4800.8,0.04]
[1756067124642,1.601,4801.9,4800.8,0.04]
[1756067124849,36.367,4801.8,4800.8,0.04]
[1756067125018,4.766,4801.7,4800.8,0.04]
[1756067125337,30.0,4801.6,4800.8,0.04]
[1756067125504,2.08290325,4801.0,4800.8,0.04]
[1756067125840,34.766,4800.9,4800.8,0.04]
[1756067126011,35.2096,4800.9,4800.8,0.04]
[1756067126213,36.84794278,4800.9,4800.8,0.04]
[1756067126615,30.0,4800.9,4800.8,0.04]
[1756067126830,2.08294278,4800.9,4800.8,0.04]
[1756067127140,4.765,4800.9,4800.8,0.04]
[1756067127502,4.764,4800.9,4800.8,0.04]
[1756067127836,1.601,4801.8,4800.8,0.04]
[1756067128031,34.764,4801.7,4800.8,0.04]
[1756067128233,4.764,4801.7,4800.8,0.04]
[1756067128440,4.764,4801.7,4800.8,0.5055]
[1756067128643,4.764,4801.7,4800.8,0.04]
[1756067128856,30.0,4801.6,4800.8,0.04]
[1756067129023,4.764,4801.5,4800.8,0.04]
[1756067129453,1.601,4802.5,4800.9,0.4655]
[1756067129742,1.601,4802.5,4801.0,0.04]
[1756067129911,4.763,4802.4,4801.0,0.04]
[1756067130111,2.08234818,4802.3,4801.0,0.04]
[1756067130367,30.84463482,4802.2,4801.0,0.04]
[1756067130519,0.84463482,4802.2,4801.0,0.04]
[1756067130856,4.763,4802.1,4801.1,0.4655]
[1756067131022,1.601,4802.5,4801.0,0.04]
[1756067131023,30.0,4802.4,4801.0,0.04]
[1756067131347,3.0,4802.2,4801.0,0.04]
[1756067131546,1.601,4802.5,4801.0,0.04]
[1756067131547,30.0,4802.1,4801.0,0.04]
[1756067131751,1.601,4802.5,4801.1,0.4655]
[1756067131950,4.762,4802.4,4801.1,0.4655]
[1756067132330,0.104,4801.2,4801.1,0.4655]
[1756067133214,1.601,4802.5,4801.0,0.04]
[1756067133416,1.601,4802.5,4801.1,0.4655]
[1756067133617,0.18855566,4802.4,4801.1,0.4655]
[1756067134377,0.18898035,4802.4,4801.1,0.4655]
[1756067134553,0.189074,4803.3,4801.3,2.08276924]
[1756067134882,0.189074,4803.3,4801.4,3.4655]
[1756067135081,0.04,4803.4,4802.9,2.08207529]
[1756067135284,0.04,4803.4,4803.0,0.4655]
[1756067135638,0.04,4803.4,4803.1,0.4655]
[1756067135990,0.04,4803.4,4803.1,2.54747561]
[1756067136294,0.04,4803.4,4803.3,2.08190202]
[1756067136449,0.04,4804.4,4803.3,2.06493776]
[1756067136651,0.04,4804.4,4803.5,5.08180072]
[1756067136984,0.04,4804.4,4804.3,2.08146868]
[1756067137338,0.04,4804.4,4804.3,5.54696868]
[1756067137782,0.22928699,4804.4,4804.3,0.4655]
[1756067138357,0.22928699,4804.4,4803.3,0.92843776]
[1756067138695,0.18928699,4804.3,4803.3,0.4655]
[1756067138898,0.18928699,4804.2,4802.4,2.08229218]
[1756067139057,0.42045403,4804.1,4802.4,2.08227412]
[1756067139252,0.19066274,4804.0,4802.4,2.08227412]
[1756067139476,0.19067306,4803.9,4802.3,2.0665]
[1756067139643,0.19067306,4803.8,4802.3,2.0665]
[1756067139843,0.19067306,4803.7,4802.3,2.0665]
[1756067140177,0.19067306,4803.6,4802.3,2.0665]
[1756067140357,0.19067306,4803.5,4802.3,2.0665]
[1756067140555,0.19067306,4803.4,4802.3,0.4655]
[1756067140862,0.19067306,4803.4,4801.3,2.08273703]
[1756067140863,0.19067306,4803.3,4801.7,2.08259445]
[1756067141173,5.8307238,4804.0,4801.8,0.72030945]
[1756067141174,0.19067306,4803.2,4801.8,0.72030945]
[1756067141380,0.19067306,4803.1,4803.0,2.08203206]
[1756067141581,0.19067306,4803.1,4801.9,3.68348448]
[1756067141768,0.19067306,4803.0,4802.3,5.08232504]
[1756067141967,2.12145002,4804.4,4802.3,3.0]
[1756067141968,0.19067306,4802.9,4802.3,3.0]
[1756067142170,0.19067306,4802.8,4802.2,0.4655]
[1756067142519,0.19067306,4802.7,4801.9,1.601]
[1756067142705,0.19096092,4802.6,4801.9,1.601]
[1756067142871,0.19096092,4802.5,4802.2,2.08236184]
[1756067143211,0.43834156,4803.7,4802.8,2.08210013]
[1756067143359,0.104,4803.3,4803.0,2.08203206]
[1756067143558,0.104,4803.3,4803.2,5.08194536]